[Event "4NCL 2022-2023"]
[Site "Daventry"]
[Date "2023.01.15"]
[Round "4.9"]
[White "Rudd, Jack"]
[Black "Lupulescu, Constantin"]
[Result "0-1"]
[ECO "B67"]
[WhiteElo "2310"]
[BlackElo "2592"]
[Annotator "TA"]
[PlyCount "128"]
[EventDate "2022.10.20"]
[EventType "team-tourn"]
[EventCountry "ENG"]
[SourceTitle "playchess.com"]
[Source "ChessBase"]
[SourceQuality "1"]
[TimeControl "40/6000+30:2400+30"]

{[%evp 20,128,33,26,38,39,25,0,13,24,16,0,0,0,-25,-36,70,88,103,87,91,68,70,72,81,25,35,30,23,14,25,0,182,162,160,0,0,0,0,0,0,0,0,0,0,0,93,-75,18,-52,7,0,0,0,0,0,0,0,50,0,0,-128,-118,-118,-131,-123,-133,-119,-137,-112,-112,-92,-59,-69,-20,-18,-22,-53,-14,-14,-14,-69,-69,-122,-122,-210,-144,-126,-133,-143,-143,-247,-241,-479,-471,-443,-177,-395,-377,-373,-356,-438,-413,-762,-710,-751,-726,-688,-647,-609,-580]} 1. e4 {[%emt 0:00:01]} c5 {[%emt 0:00:13]} 2. Nf3 {[%emt 0:00:04]} d6 {[%emt 0:00:11]} 3. d4 {[%emt 0:00:05]} cxd4 {[%emt 0:00:04]} 4. Nxd4 {[%emt 0:00:05]} Nf6 {[%emt 0:00:04]} 5. Nc3 {[%emt 0:00:06]} Nc6 {[%emt 0:00:06]} 6. Bg5 {[%emt 0:00:08]} e6 {[%emt 0:00:17]} 7. Qd2 {[%emt 0:00:05]} a6 {[%emt 0:00:39]} 8. O-O-O {[%emt 0:00:11]} Be7 {[%emt 0:00:21]} 9. Kb1 {[%emt 0:00:50]} Bd7 {[%emt 0:01:33]} 10. f3 {[%emt 0:07:29]} Qc7 {[%emt 0:05:30] 10...Nxd4 deserves study.} 11. h4 {[%emt 0:02:31]} h6 {[%emt 0:03:30] B67: Sicilian: Richter-Rauzer: 7...a6 8 0-0-0 Bd7, lines without 9 f4 Be7.} 12. Be3 {[%emt 0:00:14]} h5 {[%emt 0:00:30]} 13. Bg5 {[%emt 0:02:23]} Ne5 {[%emt 0:00:46][%cal Bc6e5,Be5g4,Bg4f2][%mdl 32] The position is equal.} 14. f4 {[%emt 1:33:18]} Neg4 {[%emt 0:02:36]} 15. f5 {[%emt 0:00:00] [#]} e5 $146 {[%emt 0:14:22]} ({Predecessor:} 15... b5 16. fxe6 fxe6 17. a3 O-O 18. Qe1 Qb6 19. Be2 Rf7 20. Rf1 Rb8 21. Bxg4 hxg4 {½-½ Gaponenko,I (2430)-Bojkovic,N (2391) EU-ch (Women) 5th 2004 (9)}) 16. Nb3 {[%emt 0:00:00]} b5 {[%emt 0:02:23]} 17. a3 {[%emt 0:00:00]} (17. Nd5 $2 Nxd5 18. exd5 (18. Qxd5 Rc8 $17) 18... f6 $17) 17... Qb7 {[%emt 0:11:48]} (17... Bc6 $15) 18. Be2 $14 {[%emt 0:00:00]} Nf2 {[%emt 0:06:07] [#]} 19. Bxb5 $1 {[%emt 0:00:00][%mdl 576] Discovered Attack} Nxh1 {[%emt 0:12:50]} (19... Nxd1 20. Bxd7+) 20. Bxd7+ {[%emt 0:00:00]} Qxd7 {[%emt 0:00:12]} 21. Rxh1 {[%emt 0:00:00]} Ng4 {[%emt 0:04:09]} 22. Bxe7 {[%emt 0:00:00]} (22. Nd5 f6 $11) (22. Na5 $16) 22... Qxe7 $11 {[%emt 0:02:20]} 23. Nd5 {[%emt 0:00:00]} Qa7 {[%emt 0:04:09]} 24. Rh3 {[%emt 0:00:00][%mdl 1024] White has compensation.} Rc8 {[%emt 0:05:18]} 25. Na5 {[%emt 0:00:00] Excellent horsemanship.} f6 $2 {[%emt 0:11:04]} (25... O-O $11 {and Black stays safe.}) 26. Rb3 $1 $18 {[%emt 0:00:00]} O-O {[%emt 0:04:40]} 27. Rb7 {[%emt 0:00:00] Inhibits Rb8.} (27. Rb6 $16) 27... Qg1+ $11 {[%emt 0:01:37]} 28. Ka2 {[%emt 0:00:00] Ne7+ is the strong threat.} Kh7 {[%emt 0:00:57]} 29. Qb4 {[%emt 0:00:00]} Qc5 {[%emt 0:04:49]} (29... Rxc2 30. Qxd6 Rg8 31. Qd7 (31. Nxf6+ Nxf6 32. Qxf6 Rxb2+ {[%mdl 64] Decoy} 33. Kxb2 Qxg2+ 34. Kc3 Qf3+ 35. Kd2 Qf2+ 36. Kd1 Qg1+ 37. Kc2 Qg2+ 38. Kb3 Qf3+ 39. Kb2 Qf2+ 40. Ka1 Qe1+ 41. Kb2 Qf2+ 42. Kc3 Qe1+ 43. Kc2 Qf2+ 44. Kd3 Qf3+ 45. Kd2 Qg2+ 46. Ke3 Qg1+ 47. Kf3 Qf1+ 48. Kg3 Qg1+ 49. Kh3 Qg4+ 50. Kh2 Qe2+ 51. Kg1 Qe1+ 52. Kh2 Qe2+ 53. Kg3 Qe3+ 54. Kh2 Qe2+ $11) 31... Rxg2 32. Qf7 $16) 30. Qa4 {[%emt 0:00:00][%cal Oa4d7] Qd7! would be deadly.} Rb8 {[%emt 0:02:30]} ({Much less strong is} 30... Qxc2 31. Qd7 Rg8 32. Qf7 $14 (32. Qxd6 $2 {loses.} Qxe4 33. g3 Rc2 $19)) 31. Rc7 {[%emt 0:00:00]} Qb5 {[%emt 0:00:49] The board is on fire.} 32. Qxb5 {[%emt 0:00:00]} axb5 {[%emt 0:01:30]} (32... Rxb5 $11 {keeps the balance.} 33. b4 Rxd5 34. exd5 Ne3) 33. Kb3 $2 {[%emt 0:00:00] [#]} (33. c4 $1 $16 {keeps the pressure on.}) 33... Rfc8 {[%emt 0:01:32]} (33... Nf2 $1 $17 {[%cal Rf2e4]} 34. Nc3 (34. Nc6 Ra8 $15) 34... Rfc8 35. Rxc8 Rxc8) 34. Rd7 {[%emt 0:00:00]} (34. Rxc8 $11 Rxc8 35. Nb7) 34... Rd8 {[%emt 0:01:08]} (34... Nf2 $1 $15 35. Nc3 (35. Nxf6+ $2 Kh6 $17) 35... Rxc3+ 36. Kxc3 Nxe4+ 37. Kb4 Ng3 38. Rxd6 Nxf5) 35. Rxd8 {[%emt 0:00:00]} Rxd8 {[%emt 0:00:05][%mdl 4096] Endgame KRN-KNN} 36. Kb4 {[%emt 0:00:00]} Nf2 {[%emt 0:02:09]} 37. Nc3 {[%emt 0:00:00]} g6 {[%emt 0:01:05]} (37... Rc8 $11) 38. Nc6 $14 {[%emt 0:00:00]} Rd7 {[%emt 0:00:55]} 39. fxg6+ {[%emt 0:00:00]} ({White should try} 39. b3 $1 $14) 39... Kxg6 $11 {[%emt 0:00:04]} 40. Kxb5 {[%emt 0:00:00]} (40. b3 $11) 40... Rb7+ $17 {[%emt 0:02:22]} 41. Kc4 {[%emt 0:00:00] aiming for b4.} Rxb2 {[%emt 0:43:01]} 42. Nb4 {[%emt 0:00:00]} f5 {[%emt 0:00:00] Black has more active pieces.} 43. exf5+ {[%emt 0:00:00]} Kxf5 {[%emt 0:00:00]} 44. a4 {[%emt 0:00:00] [#]} Ng4 $1 {[%emt 0:00:00] Hoping for ...Ne3+.} 45. Ncd5 {[%emt 0:00:00] Against Ne3+} Rb1 {[%emt 0:00:00]} 46. a5 {[%emt 0:00:00]} Ra1 {[%emt 0:00:00]} (46... e4 $1 $15) 47. a6 $11 {[%emt 0:00:00]} e4 {[%emt 0:00:00]} 48. g3 $1 {[%emt 0:00:00]} Nf6 {[%emt 0:00:00] Threatens to win with ...Nxd5.} 49. Ne3+ {[%emt 0:00:00]} Ke6 {[%emt 0:00:00]} 50. c3 {[%emt 0:00:00]} (50. Kb5 $1 $11) 50... Ra5 {[%emt 0:00:00]} 51. Nec2 {[%emt 0:00:00]} ({White should play} 51. Kd4 $15) 51... d5+ $17 {[%emt 0:00:00]} 52. Kb3 {[%emt 0:00:00]} (52. Kd4 $17) 52... Nd7 {[%emt 0:00:00] And now ...Kd6 would win.} 53. Nd4+ {[%emt 0:00:00]} Kd6 {[%emt 0:00:00] White must now prevent ...Nc5+.} 54. Nf5+ {[%emt 0:00:00]} Kc5 {[%emt 0:00:04]} 55. Ne3 {[%emt 0:00:00]} (55. Nd4 $17 {is a better defense.}) 55... Nb6 {[%emt 0:00:11]} 56. g4 $2 {[%emt 0:00:00]} (56. Nf5 {was called for.}) 56... hxg4 $19 {[%emt 0:01:51]} 57. Nxg4 {[%emt 0:00:00]} Ra1 $2 {[%emt 0:00:16]} (57... Nc4 {Strongly threatening ...Ra3+.} 58. Nf6 e3) 58. h5 $2 {[%emt 0:00:00]} (58. Ne3 {was the only chance.}) 58... Rh1 {[%emt 0:01:49]} 59. h6 {[%emt 0:00:00]} Rh4 {[%emt 0:00:28][%mdl 64] Deflection} 60. Ne5 {[%emt 0:00:00]} Rxh6 {[%emt 0:00:48]} 61. a7 {[%emt 0:00:00]} (61. Nf7 $142 Rf6 62. Ne5) 61... Rh7 {[%emt 0:02:10] Black is clearly winning.} 62. Nec6 {[%emt 1:04:00]} Rc7 {[%emt 0:01:17]} 63. a8=Q {[%emt 0:00:30]} Nxa8 {[%emt 0:00:05]} 64. Nd4 {[%emt 0:00:00]} Rb7 {[%emt 0:00:37] Black used his chance.   Weighted Error Value: White=0.37/Black=0.25 (precise)} 0-1

[Event "4NCL 2022-2023"]
[Site "Daventry"]
[Date "2023.01.15"]
[Round "4.10"]
[White "Parligras, Mircea-Emilian"]
[Black "Jones, Steven A"]
[Result "1-0"]
[ECO "E90"]
[WhiteElo "2565"]
[BlackElo "2160"]
[Annotator "TA"]
[PlyCount "45"]
[EventDate "2022.10.20"]
[EventType "team-tourn"]
[EventCountry "ENG"]
[SourceTitle "playchess.com"]
[Source "ChessBase"]
[SourceQuality "1"]
[TimeControl "40/6000+30:2400+30"]

{[%evp 14,45,43,33,53,53,45,48,65,65,60,47,50,22,26,26,69,64,219,210,274,260,485,471,481,489,477,484,423,433,432,425,29989,29990]} 1. d4 {[%emt 0:00:04]} Nf6 {[%emt 0:04:42]} 2. c4 {[%emt 0:00:14]} g6 {[%emt 0:00:37]} 3. Nc3 {[%emt 0:00:14]} Bg7 {[%emt 0:00:20]} 4. e4 {[%emt 0:00:25]} d6 {[%emt 0:00:24]} 5. h3 {[%emt 0:00:32]} O-O {[%emt 0:00:21]} 6. Be3 {[%emt 0:00:10]} c5 {[%emt 0:01:28]} 7. Nf3 {[%emt 0:01:30]} cxd4 {[%emt 0:01:36]} 8. Nxd4 {[%emt 0:00:08]} (8. Qxd4 Ng4 9. Qd2 Nxe3 10. Qxe3 Nd7 $15) 8... a6 {[%emt 0:00:26] E90: King's Indian: Classical: Early deviations and 6 h3.} 9. Be2 {[%emt 0:00:25]} b6 {[%emt 0:00:36]} 10. Qd2 {[%emt 0:00:49]} Bb7 {[%emt 0:01:35] White is slightly better.} 11. f3 {[%emt 0:00:15] White is more active.} Nbd7 {[%emt 0:12:58]} 12. O-O-O {[%emt 0:03:32] [#]} Rc8 $146 {[%emt 0:06:58]} ({Predecessor:} 12... Ne5 13. Kb1 Rc8 14. b3 e6 15. g4 Qe7 16. h4 b5 17. cxb5 axb5 18. Ndxb5 Nexg4 19. fxg4 Bxe4+ {0-1 Svane,R (2587)-Saric,I (2657) EU-ch 19th Batumi 2018 (10)}) 13. Bh6 {[%emt 0:03:53]} Bxh6 {[%emt 0:11:40]} 14. Qxh6 {[%emt 0:00:07]} Ne5 {[%emt 0:00:28]} 15. h4 {[%emt 0:14:53][%cal Bh3h4,Bh4h5][%mdl 32] And now h5! would win.} b5 $2 {[%emt 0:09:21] [#] This costs Black the game.} (15... Qd7 $14) 16. h5 $1 $18 {[%emt 0:10:35] Black must now prevent hxg6.} Qa5 {[%emt 0:02:02]} (16... Nxc4 $2 17. hxg6 $18) (16... Nxh5 17. Rxh5 (17. cxb5 Rxc3+ 18. bxc3 Qa5 $16) (17. cxb5 Nf6 $16)) (16... bxc4 $2 17. hxg6 fxg6 18. Ne6 $18) 17. Kb1 $40 {[%emt 0:02:42][%mdl 128] g4 is the strong threat. White wants a kill.} (17. cxb5 Rxc3+ 18. bxc3 Qxc3+ 19. Kb1 Bxe4+ 20. fxe4 Qb4+ 21. Ka1 Qc3+ 22. Kb1 Qb4+ 23. Ka1 Qc3+ 24. Kb1 $11) (17. hxg6 fxg6 18. Kb1 (18. cxb5 axb5 19. Bxb5 Qxa2 $11) (18. Ne6 Rf7 $14) 18... bxc4 $14) 17... Nxc4 $2 {[%emt 0:11:19]} (17... Rxc4 {was called for.} 18. Bxc4 (18. hxg6 fxg6 19. Bxc4+ bxc4 $18) 18... bxc4) 18. Bxc4 {[%emt 0:02:28]} ({Less strong is} 18. hxg6 fxg6 19. Bxc4+ (19. Ne6 Rf7 $16) 19... bxc4 $16) 18... bxc4 {[%emt 0:02:01]} 19. g4 {[%emt 0:06:45][%cal Bg2g4,Bg4g5,Bg5g6][%mdl 32]} ({Not} 19. hxg6 fxg6 20. Ne6 Rf7 $16) 19... Rb8 {[%emt 0:04:52][%cal Ob7e4]} 20. hxg6 {[%emt 0:04:19]} fxg6 {[%emt 0:00:37] [#]} 21. g5 $1 {[%emt 0:00:31]} ({Worse is} 21. Ne6 Rf7 22. Ka1 Bc8 $11) 21... Nh5 {[%emt 0:00:27]} 22. Rxh5 $1 {[%emt 0:00:32]} gxh5 {[%emt 0:01:36]} (22... Rf7 $18 23. Rh2 Qe5) 23. g6 {[%emt 0:00:30] Weighted Error Value: White=0.02 (flawless) /Black=0.81} 1-0

[Event "4NCL 2022-2023"]
[Site "Daventry"]
[Date "2023.01.15"]
[Round "4.11"]
[White "Cooper, John G"]
[Black "Csonka, Balazs"]
[Result "0-1"]
[ECO "E30"]
[WhiteElo "2231"]
[BlackElo "2495"]
[Annotator "TA"]
[PlyCount "46"]
[EventDate "2022.10.20"]
[EventType "team-tourn"]
[EventCountry "ENG"]
[SourceTitle "playchess.com"]
[Source "ChessBase"]
[SourceQuality "1"]
[TimeControl "40/6000+30:2400+30"]

{[%evp 14,46,0,-32,-25,-17,20,21,19,11,20,7,20,10,15,23,11,0,0,0,0,0,0,0,0,-6,-10,-31,-26,-38,0,-29,-26,-543,-544]} 1. c4 {[%emt 0:00:16]} Nf6 {[%emt 0:01:29]} 2. Nc3 {[%emt 0:00:48]} e6 {[%emt 0:00:41]} 3. d4 {[%emt 0:02:39]} Bb4 {[%emt 0:00:32]} 4. Bg5 {[%emt 0:01:43]} c5 {[%emt 0:01:27]} 5. d5 {[%emt 0:00:06]} d6 {[%emt 0:00:56]} 6. e3 {[%emt 0:00:15]} exd5 {[%emt 0:00:23]} 7. cxd5 {[%emt 0:00:07]} Nbd7 {[%emt 0:00:08]} 8. Bb5 {[%emt 0:00:46]} Bxc3+ {[%emt 0:03:28] E30: Nimzo-Indian: Leningrad Variation.} 9. bxc3 {[%emt 0:00:07]} Qa5 {[%emt 0:00:09]} (9... h6 $5 {[%cal Rh6g5]} 10. Bxf6 Qxf6 $11) 10. Bxd7+ {[%emt 0:01:36]} ({Much weaker is} 10. Bxf6 Qxb5 11. Bh4 (11. Bxg7 Rg8 $17) 11... Qc4 $17) 10... Nxd7 {[%emt 0:00:12] The position is equal.} 11. Ne2 {[%emt 0:00:18] [#]} Qa6 $146 {[%emt 0:23:21]} ({Predecessor:} 11... O-O 12. Be7 Re8 13. Bxd6 Nf6 14. O-O Bg4 15. f3 Rad8 16. Bg3 Rxd5 17. Qb3 Be6 {½-½ Stocek,J (2557)-Stohl,I (2518) CZE-chT 1213 2012 (5.2)}) 12. O-O {[%emt 0:08:43]} O-O {[%emt 0:02:36][%cal Bh8f8,Bf8e8,Be8e5][%mdl 32]} 13. Bf4 {[%emt 0:14:09]} Re8 {[%emt 0:09:02]} 14. Ng3 {[%emt 0:02:11]} Ne5 {[%emt 0:04:25]} 15. Bxe5 {[%emt 0:00:56]} (15. e4 {is more complex.} Nd3 16. Bxd6 Nxf2 17. Rxf2 Qxd6 18. Qh5) 15... Rxe5 {[%emt 0:00:08]} 16. e4 {[%emt 0:01:14]} Bd7 {[%emt 0:00:53][%cal Bc8d7,Bd7b5,Bb5c4,Bc4e2][%mdl 32]} 17. f4 {[%emt 0:21:12]} Re7 {[%emt 0:01:46]} 18. Qf3 {[%emt 0:02:06][%cal Oe4e5]} f6 {[%emt 0:09:22]} 19. Rae1 {[%emt 0:12:21][%cal Oe4e5]} Rae8 {[%emt 0:02:29]} 20. Nh5 {[%emt 0:04:54]} Bb5 {[%emt 0:22:34]} ({Resist} 20... Qxa2 21. e5 Bb5 22. Qg3 fxe5 23. Nf6+ Kh8 24. Nxe8 Rxe8 25. Rf2 Qxd5 26. fxe5 $11) 21. Rf2 {[%emt 0:03:24]} Bc4 {[%emt 0:00:31]} (21... Bd3 $5 {[%cal Rd3e4]} 22. Qg3 Kh8 $11) 22. Qg3 {[%emt 0:07:42]} Kh8 $1 {[%emt 0:05:06]} 23. Rd1 $2 {[%emt 0:00:29][%mdl 8192] [#]} (23. Rd2 $11 {and White has nothing to worry.}) 23... Be2 {[%emt 0:01:41] Weighted Error Value: White=0.45/Black=0.08 (flawless)} (23... Rxe4 $2 24. Qxg7#) 0-1

[Event "4NCL 2022-2023"]
[Site "Daventry"]
[Date "2023.01.15"]
[Round "4.12"]
[White "Turner, Matthew J"]
[Black "Redmond, John P."]
[Result "1-0"]
[ECO "A46"]
[WhiteElo "2451"]
[BlackElo "2194"]
[Annotator "TA"]
[PlyCount "84"]
[EventDate "2022.10.20"]
[EventType "team-tourn"]
[EventCountry "ENG"]
[SourceTitle "playchess.com"]
[Source "ChessBase"]
[SourceQuality "1"]
[TimeControl "40/6000+30:2400+30"]

{[%evp 9,84,0,0,0,0,0,1,-14,-3,-20,-39,-25,-25,-28,-28,-23,0,-54,-54,-49,-50,-49,-54,-64,-72,-61,-72,-76,-58,-62,0,0,6,6,30,30,30,30,33,32,39,39,43,31,49,49,49,49,49,49,167,167,167,167,172,158,163,124,600,565,576,501,570,344,225,96,211,0,168,178,1397,1304,4678,5063,1136,576,5583]} 1. d4 {[%emt 0:02:46]} e6 {[%emt 0:00:18]} 2. Nf3 {[%emt 0:02:43]} d5 {[%emt 0:01:15]} 3. g3 {[%emt 0:00:12]} Nf6 {[%emt 0:08:08]} 4. Bg2 {[%emt 0:00:47]} b5 {[%emt 0:03:05]} 5. Bg5 {[%emt 0:02:46]} Be7 {[%emt 0:01:55]} 6. O-O {[%emt 0:03:23] A46: 1 d4 Nf6 2 Nf3 e6: Torre, London and Colle Systems.} O-O {[%emt 0:00:29]} 7. Nbd2 {[%emt 0:05:17]} Nbd7 {[%emt 0:11:56]} 8. Re1 {[%emt 0:04:49] The position is equal.} Bb7 {[%emt 0:05:27]} 9. a4 {[%emt 0:00:38]} b4 {[%emt 0:06:47] [#]} 10. c4 $146 {[%emt 0:01:00]} ({Predecessor:} 10. Nb3 c5 11. a5 a6 12. c3 bxc3 13. bxc3 Ne4 14. Bxe7 Qxe7 15. Rc1 Rac8 16. Nfd2 cxd4 17. Nxe4 dxe4 18. Qxd4 {0-1 Vogel,J (2202)-Meszaros,G (2255) Purley Big Slick IM 3rd 2013 (9)}) 10... bxc3 {[%emt 0:09:55]} 11. bxc3 {[%emt 0:02:51]} Rc8 {[%emt 0:03:41]} 12. c4 {[%emt 0:03:24]} c5 {[%emt 0:01:08]} 13. Rc1 {[%emt 0:03:18]} (13. cxd5 $11 Nxd5 14. Bxe7 Qxe7 15. Qb3) 13... h6 $15 {[%emt 0:03:55]} 14. Bxf6 {[%emt 0:05:25]} Bxf6 {[%emt 0:00:28]} 15. cxd5 {[%emt 0:04:11]} Bxd5 {[%emt 0:02:19]} ({But not} 15... cxd4 16. dxe6 fxe6 17. Rxc8 Qxc8 18. Qb1 $11) 16. e4 {[%emt 0:06:04]} Ba8 {[%emt 0:04:12]} 17. e5 {[%emt 0:04:13]} Be7 {[%emt 0:00:09]} 18. Ne4 {[%emt 0:01:05]} cxd4 {[%emt 0:10:18]} 19. Qxd4 {[%emt 0:01:28] [#]} Nc5 {[%emt 0:14:34]} 20. Nd6 $11 {[%emt 0:04:46]} Bxd6 {[%emt 0:02:17]} 21. exd6 {[%emt 0:00:54]} Nb3 {[%emt 0:05:30][%csl LRc1,LRd4]} 22. Rxc8 {[%emt 0:00:15]} (22. Qxa7 $2 {loses.} Nxc1 23. Qe3 Na2 $19) 22... Nxd4 {[%emt 0:00:17]} 23. Rxd8 {[%emt 0:00:21]} Nxf3+ {[%emt 0:00:06]} 24. Bxf3 {[%emt 0:00:04]} Rxd8 {[%emt 0:00:11]} 25. Bxa8 {[%emt 0:00:17]} Rxa8 {[%emt 0:00:07][%mdl 4096] Endgame KR-KR} 26. Rc1 {[%emt 0:00:37] [#] Hoping for d7.} Rd8 {[%emt 0:02:27] Wards off d7} 27. Rc6 {[%emt 0:00:27]} f5 {[%emt 0:09:24]} 28. f4 {[%emt 0:05:44]} Kf7 {[%emt 0:00:56]} 29. Kf2 {[%emt 0:00:06]} Kf6 {[%emt 0:02:11]} ({Black should play} 29... Ke8 $1 $14) 30. Ke3 $18 {[%emt 0:00:18]} e5 {[%emt 0:00:37]} 31. d7+ {[%emt 0:00:35]} Ke7 {[%emt 0:00:17]} 32. fxe5 {[%emt 0:00:21] Threatens to win with e6.} Rxd7 {[%emt 0:01:14]} 33. Kf4 {[%emt 0:00:18]} Rd4+ $2 {[%emt 0:00:51][%mdl 8192]} (33... Rd2 $16) 34. Kxf5 {[%emt 0:00:07]} Rxa4 {[%emt 0:00:10]} 35. Rc7+ {[%emt 0:00:19]} Kf8 {[%emt 0:00:43]} 36. h4 {[%emt 0:01:28] Black must now prevent Ke6.} Ra6 {[%emt 0:00:37]} 37. e6 {[%emt 0:01:22]} (37. h5 $18 {and the rest is easy.}) 37... Ra3 {[%emt 0:00:32]} (37... Ra5+ $16 38. Kg6 Ra3) 38. g4 $2 {[%emt 0:03:35]} ({White has to play} 38. Rf7+ $18 Kg8 39. Kf4) 38... Rf3+ $2 {[%emt 0:00:17]} (38... Ra5+ $11 {and Black has nothing to worry.} 39. Kg6 Ra4) 39. Ke4 {[%emt 0:00:19]} Ra3 $2 {[%emt 0:00:26]} (39... Rf1 40. Rxa7 g5) 40. Rf7+ {[%emt 0:02:53] White is clearly winning.} Kg8 {[%emt 0:00:45]} 41. Rf1 {[%emt 0:40:37] Threatening mate with e7.} Ra2 {[%emt 0:00:00]} 42. Kd3 {[%emt 0:00:00] White threatens e7 and mate.} Ra3+ {[%emt 0:03:43] Weighted Error Value: White=0.36/Black=0.44} 1-0

[Event "4NCL 2022-2023"]
[Site "Daventry"]
[Date "2023.01.15"]
[Round "4.13"]
[White "Blackburn, Jonathan L B"]
[Black "Bobras, Piotr"]
[Result "0-1"]
[ECO "E71"]
[WhiteElo "2169"]
[BlackElo "2491"]
[Annotator "TA"]
[PlyCount "90"]
[EventDate "2022.10.20"]
[EventType "team-tourn"]
[EventCountry "ENG"]
[SourceTitle "playchess.com"]
[Source "ChessBase"]
[SourceQuality "1"]
[TimeControl "40/6000+30:2400+30"]

{[%evp 9,90,37,42,43,48,52,58,50,52,50,53,43,60,8,22,5,36,0,8,-10,-4,-4,-4,-10,-16,-1,0,-8,-1,-59,-75,-86,-86,-90,-85,-102,-95,-88,-100,-151,-81,-145,-100,-101,-81,-134,-139,-145,-147,-266,-274,-303,-310,-307,-290,-297,-310,-344,-315,-305,-315,-310,-308,-300,-291,-291,-291,-748,-716,-619,-585,-548,-471,-1449,-1604,-1368,-1258,-1835,-1775,-1623,-1545,-1441,-1391]} 1. d4 {[%emt 0:00:03]} Nf6 {[%emt 0:00:10]} 2. c4 {[%emt 0:00:04]} g6 {[%emt 0:00:04]} 3. Nc3 {[%emt 0:00:08]} Bg7 {[%emt 0:00:09]} 4. e4 {[%emt 0:00:22]} d6 {[%emt 0:00:06]} 5. h3 {[%emt 0:00:08]} e5 {[%emt 0:06:57]} 6. dxe5 {[%emt 0:07:31] E71: King's Indian: 4 e4 d6 5 h3.} dxe5 {[%emt 0:00:06]} 7. Qxd8+ {[%emt 0:00:19]} Kxd8 {[%emt 0:00:04]} 8. Nf3 {[%emt 0:05:31] White is slightly better.} Nc6 {[%emt 0:10:56] now supersedes 8...Nbd7.} 9. Be3 {[%emt 0:03:55] Dodges Nd4} Be6 {[%emt 0:01:29]} 10. O-O-O+ {[%emt 0:08:42]} Nd7 {[%emt 0:14:51] [#]} 11. Nd5 $146 {[%emt 0:28:17]} (11. Ng5 $14) ({Predecessor:} 11. Ng5 Nd4 12. Nb5 c5 13. f4 exf4 14. Bxf4 Nxb5 15. Nxe6+ fxe6 16. cxb5 Bd4 17. Bd6 {½-½ Parligras,M (2560)-Bernadskiy,V (2570) Geoagiu Bai Hunedoara op 2022 (4)}) 11... a5 $11 {[%emt 0:18:37]} 12. g4 {[%emt 0:10:40]} Kc8 {[%emt 0:08:08]} 13. Kb1 {[%emt 0:04:14]} b6 {[%emt 0:12:28]} 14. Bd3 {[%emt 0:10:59]} Kb7 {[%emt 0:06:48]} 15. Bc2 {[%emt 0:00:45]} h6 {[%emt 0:02:26]} 16. Ba4 {[%emt 0:02:04]} Rad8 {[%emt 0:12:15]} 17. Rd3 {[%emt 0:04:40]} Bf8 {[%emt 0:07:38]} 18. Nf6 {[%emt 0:09:47] [#] aiming for Bxc6+.} Bd6 {[%emt 0:02:01]} 19. g5 {[%emt 0:03:41]} ({White should try} 19. Bxc6+ $11 Kxc6 20. Nxd7 Rxd7 21. Rc3) 19... Nxf6 $15 {[%emt 0:02:18]} (19... Bxc4 $2 20. Bxc6+ Kxc6 21. Rc1 $18) 20. gxf6 {[%emt 0:00:07]} Nb4 {[%emt 0:00:46]} (20... Bxc4 $2 21. Bxc6+ Kxc6 22. Rc1 $18) 21. Rc3 {[%emt 0:01:33]} c5 {[%emt 0:00:04]} 22. a3 {[%emt 0:01:25]} Nc6 {[%emt 0:00:08]} 23. Bxc6+ {[%emt 0:00:23]} Kxc6 {[%emt 0:00:02]} 24. b3 {[%emt 0:00:48] [#]} (24. a4 $142) 24... Bc7 {[%emt 0:00:44]} (24... a4 $142 $1 25. bxa4 Ra8) 25. Bc1 {[%emt 0:00:28]} (25. h4 $142) 25... Bc8 {[%emt 0:01:00]} 26. Kc2 {[%emt 0:00:37]} Rde8 {[%emt 0:01:28][%cal Bd8e8,Be8e6,Be6f6][%mdl 32]} 27. Rd3 {[%emt 0:00:06]} ({Better is} 27. Ne1) 27... Re6 $17 {[%emt 0:00:40]} 28. Bb2 {[%emt 0:01:31]} Rhe8 {[%emt 0:00:02]} 29. Rd5 {[%emt 0:00:50]} (29. Ne1 $17 {keeps fighting.}) 29... Rxf6 $19 {[%emt 0:01:21]} 30. Nxe5+ {[%emt 0:00:08]} Bxe5 {[%emt 0:00:19]} 31. Bxe5 {[%emt 0:00:12]} Rxf2+ {[%emt 0:00:07]} 32. Kc1 {[%emt 0:00:31]} Kb7 {[%emt 0:01:08]} 33. Rh2 {[%emt 0:02:30]} Rxh2 {[%emt 0:00:28]} 34. Bxh2 {[%emt 0:00:02]} Rxe4 {[%emt 0:00:12]} 35. Re5 {[%emt 0:00:24]} Rxe5 {[%emt 0:01:17]} 36. Bxe5 {[%emt 0:00:03][%mdl 4096] Endgame KB-KB} a4 {[%emt 0:00:38]} 37. Kb2 {[%emt 0:00:47]} axb3 {[%emt 0:00:22]} 38. Kxb3 $2 {[%emt 0:00:06]} (38. h4) 38... Bxh3 {[%emt 0:00:10] Black is clearly winning.} 39. Bg7 {[%emt 0:00:12]} h5 {[%emt 0:00:34]} 40. Bf6 {[%emt 0:00:03]} Be6 {[%emt 0:00:39]} 41. a4 {[%emt 0:44:32]} (41. Kc3 $142 Bh3 42. Bh4) 41... Bg4 {[%emt 0:40:19]} 42. Kc2 {[%emt 0:01:26]} Be2 {[%emt 0:00:13]} 43. Kb3 {[%emt 0:00:06]} Bd1+ {[%emt 0:00:11]} 44. Ka3 {[%emt 0:00:02]} Kc6 {[%emt 0:00:45]} 45. Bd8 {[%emt 0:00:25]} f5 {[%emt 0:00:52] Weighted Error Value: White=0.46/Black=0.08 (flawless)} 0-1